bitfinex-derivatives/quotes_ETHF0:USTF0_20241004
["timestamp","ask_amount","ask_price","bid_price","bid_amount"]
[1728056207478,0.41832,2390.9,2390.7,0.41833]
[1728056207678,0.4199,2391.1,2390.6,1.04591]
[1728056207879,0.4183,2391.0,2390.7,0.3919]
[1728056208176,0.4199,2391.1,2390.7,0.3919]
[1728056208377,0.41834,2390.8,2390.5,3.2078]
[1728056208584,0.41834,2390.8,2390.6,0.41835]
[1728056208884,0.41835,2390.7,2390.6,0.41835]
[1728056209078,1.04574,2391.0,2390.5,3.2078]
[1728056209386,0.41833,2390.8,2390.7,0.41834]
[1728056209777,1.04574,2391.0,2390.5,3.2078]
[1728056209973,0.41832,2390.9,2390.7,0.41833]
[1728056210180,1.04574,2391.0,2390.7,0.41833]
[1728056210375,0.41832,2390.9,2390.7,0.41833]
[1728056210677,0.41831,2390.9,2390.7,0.41833]
[1728056211285,1.04579,2390.9,2390.5,3.2078]
[1728056211485,1.04574,2391.0,2390.5,3.2078]
[1728056211486,0.41836,2390.6,2390.5,3.2078]
[1728056212380,3.26,2390.6,2390.2,3.2078]
[1728056212576,0.81999,2390.5,2390.2,0.41843]
[1728056212776,0.4016,2390.5,2390.3,0.41841]
[1728056212981,0.4184,2390.4,2390.3,0.41841]
[1728056213188,0.81999,2390.5,2390.3,0.41841]
[1728056213382,0.4184,2390.4,2390.3,0.41841]
[1728056213581,0.4016,2390.5,2390.0,1.85187]
[1728056213582,0.41842,2390.3,2390.0,0.8057]
[1728056213782,0.41841,2390.4,2390.2,0.41842]
[1728056213980,1.44757,2390.5,2390.2,0.41842]
[1728056214190,0.41842,2390.3,2390.2,0.41842]
[1728056214385,0.41841,2390.4,2390.3,0.41841]
[1728056214586,0.41837,2390.6,2390.1,1.04612]
[1728056214786,0.4184,2390.4,2390.3,0.41841]
[1728056214990,0.4184,2390.4,2390.1,1.04612]
[1728056214991,0.8401,2390.7,2390.1,1.04612]
[1728056215285,0.41837,2390.6,2390.2,1.04609]
[1728056215474,0.8401,2390.7,2390.5,0.41838]
[1728056215683,0.8401,2390.7,2390.2,4.25389]
[1728056215879,0.41835,2390.7,2390.6,0.41836]
[1728056216688,0.4061,2390.8,2390.5,0.41837]
[1728056216689,0.41837,2390.6,2390.5,0.41837]
[1728056216882,0.41835,2390.7,2390.3,1.04605]
[1728056217181,0.41835,2390.7,2390.6,0.41836]
[1728056217786,0.4061,2390.8,2390.3,1.04605]
[1728056217985,0.41836,2390.7,2390.5,0.41837]
[1728056218286,0.4061,2390.8,2390.6,0.41836]
[1728056218481,0.41835,2390.7,2390.6,0.41836]
[1728056218688,0.41837,2390.6,2390.5,0.41838]
[1728056218880,0.41838,2390.6,2390.4,0.41838]
[1728056219079,0.41838,2390.6,2390.5,0.41838]
[1728056219287,4.71194,2390.8,2390.2,4.25388]
[1728056219590,0.41835,2390.7,2390.6,0.41836]
[1728056219789,4.71194,2390.8,2390.2,4.25388]
[1728056219981,0.41837,2390.6,2390.5,0.41837]
[1728056220182,0.41838,2390.5,2390.4,0.41839]
[1728056220488,0.41841,2390.4,2390.3,0.41841]
[1728056220683,3.26,2390.6,2390.0,0.8057]
[1728056220890,0.4057,2390.5,2390.4,0.4184]
[1728056221086,0.82444,2390.8,2390.7,0.41835]
[1728056221283,0.41836,2390.7,2390.6,0.41836]
[1728056221481,0.41834,2390.8,2390.7,0.41834]
[1728056221793,1.46329,2390.9,2390.5,0.4234]
[1728056221981,1.46329,2390.9,2390.7,0.41834]
[1728056221982,0.41834,2390.8,2390.7,0.41834]
[1728056222182,0.4175,2390.9,2390.8,0.41833]
[1728056222381,0.4175,2390.9,2390.5,4.67712]
[1728056222578,0.83582,2390.9,2390.7,0.41833]
[1728056222782,0.4175,2390.9,2390.8,0.41833]
[1728056223185,0.83581,2390.9,2390.8,0.41833]
[1728056223586,0.4175,2390.9,2390.8,0.41833]
[1728056223783,2.739028,2391.6,2390.8,10.6502]
[1728056223983,2.739028,2391.6,2390.5,0.8227]
[1728056223984,0.8155,2391.6,2391.5,0.41821]
[1728056224185,0.8155,2391.6,2391.2,0.41825]
[1728056224597,0.41823,2391.4,2391.2,0.41825]
[1728056225391,3.784348,2392.0,2391.3,7.4416]
[1728056225588,0.4182,2391.6,2391.4,0.41822]
[1728056225782,0.41821,2391.5,2391.3,0.81072]
[1728056226085,4.30545,2391.7,2391.3,0.81073]
[1728056226290,1.04552,2391.5,2391.2,0.41826]
[1728056226489,0.41826,2391.2,2391.1,0.4154]
[1728056226790,1.1756,2391.4,2390.8,6.4678]
[1728056226996,2.22117,2391.4,2390.8,6.8733]
[1728056227187,0.41825,2391.3,2390.8,7.91912]
[1728056227379,0.41826,2391.2,2390.8,7.91912]
[1728056227578,0.41826,2391.2,2391.1,0.41828]
[1728056227784,0.41826,2391.3,2391.1,0.41826]
[1728056228196,0.41828,2391.1,2391.0,0.41828]
[1728056228382,0.41828,2391.1,2390.8,0.4055]
[1728056228383,3.26,2391.1,2390.8,0.4055]
[1728056228582,3.67828,2391.1,2391.0,0.41829]
[1728056228793,1.04561,2391.3,2390.8,0.4055]
[1728056228794,4.30561,2391.3,2390.8,0.4055]
[1728056229091,0.4183,2391.0,2390.8,0.4055]
[1728056229290,1.46403,2391.0,2390.7,0.41833]
[1728056229486,1.04574,2391.0,2390.7,0.41833]
[1728056229693,3.26,2390.9,2390.5,3.2078]
[1728056229890,3.26,2390.8,2390.5,3.2078]
[1728056230222,3.26,2390.8,2390.6,0.41836]
[1728056230223,0.41835,2390.7,2390.6,0.41836]
[1728056230393,0.41835,2390.7,2390.5,3.2078]
[1728056230394,0.41836,2390.6,2390.5,3.62618]
[1728056230593,0.41835,2390.7,2390.6,0.41835]
[1728056231891,0.41836,2390.6,2390.5,3.2078]
[1728056232092,0.4184,2390.4,2390.3,0.4184]
[1728056232296,3.26,2390.5,2390.2,0.41843]
[1728056232495,0.41848,2390.0,2389.9,0.41847]
[1728056232795,1.04615,2390.1,2389.8,3.6094]
[1728056233099,0.41849,2389.9,2389.8,3.2078]
[1728056233303,3.785228,2390.0,2389.6,0.41853]
[1728056233493,7.045178,2390.1,2389.5,0.4016]
[1728056233713,0.4185,2389.9,2389.7,0.41851]
[1728056233994,5.999028,2390.1,2389.5,0.4016]
[1728056234186,0.4057,2389.8,2389.5,0.4016]
[1728056234384,2.739028,2390.1,2390.0,0.41847]
[1728056234586,0.82414,2390.2,2389.8,4.30626]
[1728056234790,0.41845,2390.1,2390.0,0.41846]
[1728056235007,0.4057,2390.2,2390.0,0.41846]
[1728056235290,0.4057,2390.2,2390.0,0.41847]
[1728056235497,0.82415,2390.2,2390.1,0.41845]
[1728056235793,0.41845,2390.1,2390.0,0.41845]
[1728056236193,0.41849,2389.9,2389.7,3.2078]
[1728056236398,3.26,2390.1,2389.7,3.2078]
[1728056236597,0.41849,2389.9,2389.8,0.41849]
[1728056236804,3.26,2390.1,2389.5,0.4016]
[1728056237010,0.41855,2389.6,2389.4,3.62636]
[1728056237236,0.41856,2389.5,2389.4,3.2078]
[1728056237409,0.82746,2389.5,2389.4,3.62637]
[1728056237908,0.7934,2389.7,2389.5,0.41854]
[1728056238111,0.7934,2389.7,2389.6,0.41854]
[1728056238303,0.41854,2389.6,2389.5,0.41855]
[1728056238504,1.21193,2389.7,2389.6,0.41854]
[1728056238703,0.41855,2389.6,2389.3,0.41859]
[1728056239010,0.41854,2389.6,2389.5,0.41855]
[1728056239206,0.7934,2389.7,2389.2,1.04652]
[1728056239514,0.7934,2389.7,2389.6,0.41854]
[1728056239515,1.21193,2389.7,2389.6,0.41854]
[1728056239811,0.41856,2389.5,2389.4,0.41856]
[1728056240008,0.7934,2389.7,2389.2,1.04653]
[1728056240704,0.7934,2389.7,2389.2,3.26]
[1728056240908,0.7934,2389.7,2389.5,0.41855]
[1728056240909,0.41854,2389.6,2389.5,0.41855]
[1728056241211,1.21193,2389.7,2389.6,0.41854]
[1728056241613,4.9782,2389.7,2389.2,4.30652]
[1728056241915,0.41854,2389.6,2389.5,0.41854]
[1728056243016,1.21193,2389.7,2389.6,0.41854]
[1728056243407,5.39673,2389.7,2389.6,0.41854]
[1728056244213,1.21192,2389.7,2389.6,0.41854]
[1728056245008,0.7934,2389.7,2389.6,0.41854]
[1728056245205,0.41845,2390.2,2389.6,4.60334]
[1728056245417,0.41852,2389.8,2389.6,0.41854]
[1728056245716,0.41852,2389.8,2389.7,0.41852]
[1728056245911,1.84281,2390.2,2389.5,3.2078]
[1728056246109,0.7967,2390.2,2389.5,6.4678]
[1728056246309,0.41845,2390.1,2390.0,0.41846]
[1728056246508,0.41845,2390.1,2389.7,1.04628]
[1728056246509,1.21513,2390.2,2390.1,0.41845]
[1728056247009,0.7967,2390.2,2390.1,0.41845]
[1728056247717,1.21513,2390.2,2390.1,0.41845]
[1728056248322,0.41847,2390.0,2389.8,3.2078]
[1728056248511,0.41849,2389.9,2389.8,3.62629]
[1728056248709,5.10279,2390.2,2389.8,3.2078]
[1728056248920,4.0567,2390.2,2389.8,3.2078]
[1728056249109,0.3923,2390.2,2390.1,0.41845]
[1728056249431,0.80926,2390.6,2390.5,0.41838]
[1728056249713,0.3909,2390.6,2390.5,0.41838]
[1728056250308,0.3986,2390.7,2390.3,1.04604]
[1728056250515,0.3901,2390.8,2390.4,6.8663]
[1728056250707,0.41835,2390.7,2390.6,0.41835]
[1728056251107,0.41838,2390.6,2390.4,3.6063]
[1728056251525,0.41838,2390.6,2390.4,3.62618]
[1728056251814,0.41838,2390.6,2390.5,0.41838]
[1728056252010,0.41838,2390.5,2390.4,3.2078]
[1728056252612,0.41837,2390.6,2390.5,0.41838]
[1728056252914,0.41837,2390.6,2390.4,3.2078]
[1728056252915,0.41838,2390.5,2390.4,3.62619]
[1728056253515,0.41838,2390.5,2390.4,3.2078]
[1728056253919,0.41838,2390.5,2390.4,3.6262]
[1728056254331,0.41838,2390.5,2390.4,0.4184]
[1728056255114,0.41841,2390.4,2390.3,0.41841]
[1728056255314,0.41842,2390.3,2390.2,0.41843]
[1728056255517,0.7993,2390.3,2390.1,3.2078]
[1728056255718,3.67843,2390.2,2390.1,3.2078]
[1728056256118,7.86243,2390.2,2390.1,3.2078]
[1728056256319,0.41849,2389.9,2389.8,0.41849]
[1728056257638,0.4263,2389.9,2389.8,0.4185]
[1728056259127,4.6103,2389.9,2389.4,3.2078]
[1728056259317,3.26,2389.7,2389.4,3.2078]
[1728056259515,0.41855,2389.6,2389.5,0.41855]
[1728056259819,4.30631,2389.7,2389.4,3.2078]
[1728056260011,0.41855,2389.6,2389.5,0.41855]
[1728056260716,4.30631,2389.7,2389.4,3.2078]
[1728056260717,3.26,2389.7,2389.4,3.2078]
[1728056260920,3.67854,2389.7,2389.6,0.41854]
[1728056261118,0.41854,2389.6,2389.5,0.41854]
[1728056261726,3.67853,2389.7,2389.6,0.41854]
[1728056262122,7.86333,2389.7,2389.6,0.41854]
[1728056262628,7.4448,2389.7,2389.4,3.2078]
[1728056262923,1.85128,2389.8,2389.4,3.2078]
[1728056263126,0.41856,2389.5,2389.4,3.62636]
[1728056263523,4.30633,2389.7,2389.4,3.2078]
[1728056263721,0.4185,2389.6,2389.5,0.41851]
[1728056263923,0.41851,2389.5,2389.4,3.62633]
[1728056264121,3.67849,2389.7,2389.4,3.2078]
[1728056264322,3.26,2389.7,2389.4,3.2078]
[1728056264517,0.4185,2389.6,2389.5,0.41851]
[1728056265329,0.41851,2389.5,2389.4,3.2078]
[1728056265629,7.86331,2389.5,2389.4,2.5641]
[1728056266028,13.86331,2389.5,2389.4,2.5641]
[1728056267932,0.41857,2389.2,2389.1,3.2078]
[1728056268132,3.67857,2389.2,2389.1,3.2078]
[1728056268427,0.41862,2388.9,2388.7,0.80615]
[1728056268732,3.67862,2388.9,2388.7,0.80615]
[1728056268932,3.26,2388.9,2388.8,0.41864]
[1728056269128,3.26,2388.9,2388.7,0.3875]
[1728056269331,3.26,2388.9,2388.7,0.80614]
[1728056269536,3.67862,2388.9,2388.7,0.80614]
[1728056269830,3.26,2388.9,2388.7,0.80614]
[1728056270431,3.26,2388.9,2388.8,0.41864]
[1728056270635,3.6786,2389.1,2388.9,0.41861]
[1728056270831,3.26,2389.1,2389.0,0.4186]
[1728056271033,0.41857,2389.2,2389.0,0.4186]
[1728056271232,0.41859,2389.1,2388.9,0.41862]
[1728056271434,4.07457,2389.3,2389.0,0.4186]
[1728056271739,4.70239,2389.3,2388.9,0.41861]
[1728056271925,0.41858,2389.2,2388.9,0.41861]
[1728056272128,4.70239,2389.3,2388.9,0.41861]
[1728056272634,0.41857,2389.2,2389.0,0.4186]
[1728056272854,0.41857,2389.2,2388.8,3.2078]
[1728056273023,0.41857,2389.2,2389.0,0.4186]
[1728056273437,0.41858,2389.1,2388.8,3.2078]
[1728056273734,4.07456,2389.3,2388.8,3.2078]
[1728056273932,3.656,2389.3,2389.1,0.41858]
[1728056274129,4.07455,2389.3,2389.1,0.41858]
[1728056274938,3.656,2389.3,2388.8,3.2078]
[1728056275137,4.07456,2389.3,2388.8,4.25439]
[1728056275337,0.81456,2389.3,2389.1,0.41858]
[1728056275635,0.41853,2389.5,2389.3,0.41854]
[1728056276231,1.04625,2389.6,2389.2,0.789]
[1728056276531,0.41852,2389.5,2389.3,0.41854]
[1728056276930,0.41851,2389.6,2389.4,0.41853]
[1728056277126,4.0754,2389.7,2389.2,0.789]
[1728056277326,0.41851,2389.5,2389.2,0.789]
[1728056277641,0.41851,2389.5,2389.3,0.41854]
[1728056278141,0.41851,2389.5,2389.4,0.41853]
[1728056278531,0.41851,2389.5,2389.3,0.41853]
[1728056278727,5.12161,2389.7,2389.2,0.789]
[1728056279132,0.41852,2389.5,2389.2,0.789]
[1728056279327,5.12161,2389.7,2389.2,0.789]
[1728056279641,3.67855,2389.3,2389.2,0.789]
[1728056280130,3.67855,2389.3,2389.2,1.20757]
[1728056280332,0.41857,2389.2,2389.1,3.2078]
[1728056280642,3.67856,2389.3,2389.1,3.62637]
[1728056280938,0.41857,2389.2,2389.1,3.62637]
[1728056281144,0.41857,2389.2,2389.1,3.2078]
[1728056281332,0.41858,2389.1,2389.0,0.41859]
[1728056281846,0.81788,2389.2,2388.9,0.41862]
[1728056282035,0.41858,2389.1,2389.0,0.41859]
[1728056282267,0.4186,2389.0,2388.9,0.82181]
[1728056282734,0.4186,2389.0,2388.9,0.41861]
[1728056283140,0.801,2389.2,2389.0,0.4186]
[1728056283334,0.41858,2389.1,2389.0,0.4186]
[1728056283534,1.21957,2389.2,2389.1,0.41858]
[1728056283734,0.41855,2389.4,2389.2,0.41855]
[1728056284041,0.41856,2389.3,2389.2,0.41856]
[1728056284338,2.739028,2389.6,2389.5,0.4185]
[1728056284339,0.4185,2389.6,2389.5,0.4185]
[1728056284631,6.400728,2389.7,2389.1,1.45925]
[1728056284632,4.70791,2389.7,2389.1,1.45925]
[1728056284838,0.41853,2389.5,2389.4,0.41853]
[1728056285542,0.41855,2389.3,2389.2,0.41855]
[1728056285746,0.41857,2389.2,2389.1,0.4128]
[1728056286033,0.41857,2389.2,2388.9,0.4247]
[1728056286034,0.4186,2389.0,2388.9,0.4247]
[1728056286241,0.4186,2389.0,2388.9,0.41862]
[1728056286834,0.41859,2389.1,2389.0,0.41859]
[1728056287336,0.3997,2389.2,2388.8,1.04658]
[1728056287532,0.81827,2389.2,2389.1,0.41858]
[1728056287941,0.41855,2389.3,2389.2,0.41855]
[1728056288135,0.41854,2389.4,2389.3,0.41854]
[1728056288359,0.41855,2389.3,2389.0,4.25429]
[1728056288541,0.41854,2389.4,2389.3,0.41854]
[1728056289039,0.41856,2389.3,2389.2,0.41856]
[1728056289543,0.41856,2389.3,2389.2,0.41855]
[1728056289544,0.41855,2389.3,2389.2,0.41855]
[1728056289841,0.41854,2389.4,2389.3,0.41854]
[1728056290540,4.30629,2389.5,2389.4,0.41853]
[1728056290541,0.41853,2389.5,2389.4,0.41853]
[1728056291548,0.41852,2389.5,2389.4,0.41851]
[1728056292136,3.26,2389.5,2389.2,0.8088]
[1728056292338,0.41854,2389.4,2389.3,0.41853]
[1728056293035,3.67853,2389.5,2389.4,0.41853]
[1728056293644,3.26,2389.5,2389.2,0.8088]
[1728056293840,0.41854,2389.4,2389.3,0.41853]
[1728056294442,0.41855,2389.3,2389.2,1.22735]
[1728056294647,0.41854,2389.4,2389.3,0.41854]
[1728056295037,0.41854,2389.4,2389.2,0.8088]
[1728056295038,3.67853,2389.5,2389.4,0.41853]
[1728056295338,3.26,2389.5,2389.2,0.8088]
[1728056295530,3.67853,2389.5,2389.4,0.41853]
[1728056295936,3.67853,2389.5,2389.2,0.8088]
[1728056295937,0.41855,2389.3,2389.2,1.22735]
[1728056296133,0.41855,2389.3,2389.2,0.41855]
[1728056296343,3.67855,2389.3,2389.2,0.41855]
[1728056296548,0.8122,2389.6,2389.2,4.1856]
[1728056296741,1.23072,2389.6,2389.5,0.41851]
[1728056297247,1.2307,2389.6,2389.5,0.41851]
[1728056297443,1.2307,2389.6,2389.4,0.41851]
[1728056297444,0.41852,2389.5,2389.4,0.41851]
[1728056300341,2.739028,2389.8,2389.4,10.1848]
[1728056300541,2.739028,2390.4,2389.7,3.26]
[1728056300746,3.157368,2390.5,2390.4,0.41836]
[1728056300945,3.157368,2390.5,2390.2,3.2078]
[1728056300946,1.04585,2390.5,2390.2,3.2078]
[1728056301154,0.41837,2390.3,2390.2,3.2078]
[1728056302246,0.41837,2390.3,2390.2,3.62619]
[1728056303051,5.999028,2390.6,2390.2,3.62619]
[1728056303052,0.41836,2390.4,2390.3,0.41836]
[1728056303345,5.999028,2390.7,2390.6,0.41832]
[1728056303558,0.41833,2390.6,2390.5,0.41833]
[1728056304342,0.41835,2390.5,2390.4,0.41835]
[1728056304861,0.41837,2390.3,2390.2,3.62618]
[1728056305049,0.41837,2390.3,2390.2,3.2078]
[1728056305251,0.41837,2390.3,2390.2,3.62619]
[1728056305443,0.41837,2390.3,2390.2,3.2078]
[1728056305747,0.41837,2390.3,2390.2,3.62619]
[1728056306352,0.41836,2390.4,2390.3,0.41836]
[1728056306747,3.26,2390.5,2390.2,3.2078]
[1728056306956,0.41836,2390.4,2390.3,0.41837]
[1728056307651,4.30587,2390.5,2390.2,3.2078]
[1728056307843,0.41837,2390.4,2390.3,0.41836]
[1728056308048,0.41837,2390.3,2390.2,3.62619]
[1728056308253,1.26497,2390.3,2390.2,3.2078]
[1728056308452,1.26497,2390.3,2390.2,3.62619]
[1728056310252,0.8466,2390.3,2390.2,3.62619]
[1728056310458,3.2078,2390.7,2390.2,4.25377]
[1728056310652,0.41834,2390.6,2390.5,0.41833]
[1728056311050,4.0159,2390.7,2390.2,4.25377]
[1728056311256,3.67835,2390.5,2390.4,0.41834]
[1728056311773,3.67835,2390.5,2390.3,0.41836]
[1728056311774,0.41836,2390.4,2390.3,0.41836]
[1728056312155,3.26,2390.5,2390.2,3.2078]
[1728056312457,0.41837,2390.4,2390.3,0.41835]
[1728056313257,0.41837,2390.4,2389.7,1.0462]
[1728056313258,0.41843,2390.0,2389.7,1.0462]
[1728056313454,3.67836,2390.4,2390.3,0.41835]
[1728056313851,0.41836,2390.4,2390.3,0.41835]
[1728056315459,0.41834,2390.5,2390.2,3.2078]
[1728056315757,0.41834,2390.5,2390.3,0.41837]
[1728056315963,0.41836,2390.4,2390.3,0.41837]
[1728056317862,0.41838,2390.3,2390.2,0.41838]
[1728056318753,0.41836,2390.4,2390.3,0.41836]
[1728056319757,1.04586,2390.5,2390.0,2.23814]
[1728056320064,4.0681,2390.7,2389.9,3.2078]
[1728056320065,0.41841,2390.1,2389.9,0.41843]
[1728056320360,3.26,2390.4,2389.8,1.04616]
[1728056320563,0.41838,2390.3,2390.2,0.41837]
[1728056321460,0.41841,2390.2,2390.1,0.4184]
[1728056321668,1.21551,2390.2,2390.1,0.4184]
[1728056324567,1.21551,2390.2,2390.1,0.41841]
[1728056324868,3.26,2390.4,2390.0,0.4194]
[1728056325059,0.41839,2390.3,2390.2,0.41838]
[1728056325256,0.41839,2390.3,2390.0,0.8151]
[1728056325463,4.30599,2390.2,2389.9,3.2078]
[1728056325764,0.41844,2389.9,2389.8,0.41845]
[1728056326451,0.41844,2389.9,2389.7,0.393]
[1728056326452,0.41849,2389.7,2389.6,0.41848]
[1728056326655,0.41849,2389.7,2389.1,0.14404334]
[1728056326656,3.26,2389.7,2389.1,0.14404334]
[1728056326854,4.07,2390.1,2388.9,3.2078]
[1728056326855,0.41857,2389.2,2388.9,0.3945]
[1728056327066,0.4186,2389.0,2388.9,0.3945]
[1728056327250,3.6494,2389.1,2388.8,0.41863]
[1728056327456,0.41862,2388.9,2388.8,0.41863]
[1728056327671,3.62641,2389.0,2388.9,0.41862]
[1728056327957,3.62641,2389.0,2388.6,0.41866]
[1728056327958,0.41866,2388.7,2388.6,0.41866]
[1728056328171,3.2078,2388.7,2388.5,0.41869]
[1728056328556,3.62646,2388.7,2388.5,0.41868]
[1728056328756,3.62646,2388.7,2388.1,1.44379039]
[1728056328964,3.2078,2388.7,2388.6,0.41867]
[1728056329563,3.62645,2388.7,2388.6,0.41867]
[1728056330164,3.2078,2388.7,2388.6,0.41867]
[1728056331586,3.62645,2388.7,2388.6,0.41867]
[1728056331761,3.62645,2388.7,2388.6,0.19567197]
[1728056332465,3.2078,2388.7,2388.6,0.19567197]
[1728056332962,3.2078,2388.7,2388.6,4.38207197]
[1728056333559,3.2078,2388.7,2388.5,3.26]
[1728056333962,3.2078,2388.7,2388.6,0.41867]
[1728056335270,9.43438296,2388.7,2387.7,3.2078]
[1728056335462,3.62652,2388.4,2388.3,0.41872]
[1728056335663,3.62652,2388.4,2387.8,1.1129]
[1728056335664,6.17438296,2388.4,2387.8,1.1129]
[1728056335962,0.41874,2388.2,2388.0,0.41876]
[1728056336161,3.38531296,2388.3,2388.2,0.41874]
[1728056336357,0.41875,2388.2,2387.8,1.1129]
[1728056336566,0.41875,2388.2,2388.1,0.41876]
[1728056336871,3.38533296,2388.2,2388.1,0.41876]
[1728056337369,2.96658296,2388.2,2388.1,0.41876]
[1728056338471,7.27345296,2388.2,2387.9,0.41879]
[1728056338659,6.88659,2388.0,2387.9,0.41879]
[1728056338863,9.85317296,2388.0,2387.9,0.41879]
[1728056339768,9.43438296,2388.0,2387.7,0.41882]
[1728056339972,2.96658296,2387.8,2387.7,0.41882]
[1728056341273,2.96658296,2387.8,2387.2,0.281]
[1728056341274,6.22658296,2387.8,2387.2,0.281]
[1728056341570,2.96658296,2387.6,2387.5,0.41885]
[1728056341764,3.38547296,2387.4,2387.3,0.4189]
[1728056342076,2.96658296,2387.4,2387.3,0.4189]
[1728056342376,6.17438296,2387.4,2387.3,0.4189]
[1728056345972,1.04726,2387.3,2386.5,0.211]
[1728056346274,0.41908,2386.3,2386.0,0.63012]
[1728056346475,6.64569296,2386.1,2385.8,0.41915]
[1728056346673,2.96658296,2385.9,2385.8,0.41915]
[1728056347368,6.22658296,2385.9,2385.7,0.41917]
[1728056347568,2.96658296,2385.8,2385.7,0.41917]
[1728056348572,3.2078,2386.0,2385.9,0.41914]
[1728056348970,0.4227,2386.2,2386.1,0.41911]
[1728056349276,3.38928296,2386.2,2386.1,0.41911]
[1728056349475,2.96658296,2386.2,2386.1,0.41911]
[1728056349674,3.2078,2386.3,2386.1,6.0]
[1728056349876,3.2078,2386.3,2386.2,0.41909]
[1728056351569,3.2078,2386.3,2386.2,6.41909]
[1728056352568,3.2078,2386.3,2386.2,0.41909]
[1728056352980,6.17438296,2386.3,2386.2,0.41909]
[1728056353782,3.2078,2386.3,2386.2,0.41909]
[1728056356285,0.3908,2386.7,2386.6,0.41902]
[1728056356486,3.6236,2386.8,2386.7,0.419]
[1728056356487,3.2078,2386.8,2386.7,0.419]
[1728056356881,3.2078,2386.8,2386.7,10.6086]
[1728056357279,3.2078,2387.1,2386.7,10.1896]
[1728056357491,3.2078,2387.1,2387.0,0.41895]
[1728056357689,0.8481,2387.6,2387.5,0.41886]
[1728056358090,3.81468296,2387.6,2387.5,0.41886]
[1728056358386,3.38558296,2387.6,2387.5,0.41886]
[1728056359091,2.54764296,2387.1,2386.7,1.04751]
[1728056359294,2.54764296,2386.8,2386.5,2.09514]
[1728056359487,3.2078,2387.3,2386.6,1.04756]
[1728056359488,2.54764296,2387.0,2386.6,1.04756]
[1728056359688,2.54764296,2387.2,2387.1,0.41893]
[1728056360384,2.54764296,2387.2,2386.5,0.281]
[1728056360591,2.54764296,2387.0,2386.9,0.41897]
[1728056360787,0.41894,2387.1,2386.9,0.41897]
[1728056360987,2.54764296,2387.0,2386.9,0.41897]
[1728056361187,2.95834296,2387.0,2386.9,0.41897]
[1728056365492,3.6314,2387.3,2387.2,0.41892]
[1728056365696,5.75544296,2387.3,2387.2,0.41892]
[1728056365896,3.2078,2387.3,2387.2,0.41892]
[1728056366391,3.2078,2387.3,2387.2,10.60772]
[1728056366592,3.2078,2387.3,2387.2,0.41892]
[1728056366798,3.6211,2387.7,2387.6,0.41885]
[1728056366999,6.16874296,2387.7,2387.6,0.41885]
[1728056367390,6.16874296,2387.7,2387.1,1.71543]
[1728056367591,3.6211,2387.7,2387.6,0.41885]
[1728056367786,2.54764296,2387.6,2387.5,0.41885]
[1728056369591,2.54764296,2387.6,2387.0,3.75503672]
[1728056369895,2.54764296,2387.1,2387.0,0.41895]
[1728056370902,3.2078,2387.4,2387.3,0.4189]
[1728056371094,0.4206,2387.6,2387.5,0.41886]
[1728056371290,2.96824296,2387.6,2387.2,0.4099]
[1728056371590,2.96824296,2387.6,2387.2,0.4189]
[1728056371591,2.54764296,2387.3,2387.2,0.4189]
[1728056372000,2.96654296,2387.3,2387.2,0.4189]
[1728056372197,2.54764296,2387.3,2387.2,0.4189]
[1728056375798,0.4206,2387.6,2387.5,0.41886]
[1728056376318,3.38709296,2387.6,2387.5,0.41886]
[1728056376505,2.96824296,2387.6,2387.5,0.41886]
[1728056378498,3.38709296,2387.6,2387.5,0.41886]
[1728056378898,2.96824296,2387.6,2386.9,1.04743]
[1728056379099,2.54764296,2387.1,2387.0,0.41895]
[1728056379995,3.2078,2387.4,2387.0,6.41895]
[1728056380202,0.4206,2387.6,2387.2,0.41892]
[1728056380203,2.54764296,2387.3,2387.2,0.41892]
[1728056384107,0.4206,2387.6,2387.2,0.41892]
[1728056384296,2.54764296,2387.4,2387.3,0.4189]
[1728056384597,2.54764296,2387.5,2387.4,0.41888]
[1728056385202,3.2078,2387.7,2387.6,0.41885]
[1728056385399,5.75544296,2387.7,2387.6,0.41885]
[1728056386602,2.54764296,2387.7,2387.6,0.41885]
[1728056389013,2.96647296,2387.7,2387.6,0.41885]
[1728056389210,6.17427296,2387.7,2387.6,0.41885]
[1728056390212,5.75544296,2387.7,2387.6,0.41885]
[1728056391205,2.54764296,2387.7,2387.6,0.41885]
[1728056391897,0.4249,2387.9,2387.6,0.41885]
[1728056392102,1.04678,2388.4,2388.2,0.41874]
[1728056392103,3.2078,2388.3,2388.2,0.41874]
[1728056392310,4.0312,2388.3,2388.2,0.41874]
[1728056392507,6.57884296,2388.3,2388.2,0.41874]
[1728056393309,0.41877,2388.1,2387.9,0.41878]
[1728056393507,2.54764296,2388.0,2387.9,0.41879]
[1728056397303,2.54764296,2388.0,2387.5,0.52804441]
[1728056397304,2.54764296,2388.0,2387.5,0.3888]
[1728056397505,3.68881,2387.9,2387.7,0.41882]
[1728056397808,0.3882,2387.8,2387.7,0.41882]
[1728056398005,2.93584296,2387.8,2387.7,0.41882]
[1728056400310,3.36474296,2387.8,2387.7,0.41882]
[1728056400513,6.63474296,2387.8,2387.7,0.41882]
[1728056402522,3.2078,2388.0,2387.5,0.3888]
[1728056402819,2.54764296,2388.0,2387.9,0.41879]
[1728056406120,2.96642296,2388.0,2387.9,0.41879]
[1728056406318,2.54764296,2388.0,2387.9,0.41879]
[1728056410319,0.8237,2388.3,2388.2,0.41874]